bitfinex/quotes_SOLUSD_20240725
["timestamp","ask_amount","ask_price","bid_price","bid_amount"]
[1721881537186,7.57725179,171.89,171.65,29.33]
[1721881537394,41.273205,171.9,171.75,29.33]
[1721881537395,29.33,171.9,171.75,29.33]
[1721881537591,29.33,171.9,171.75,2.46005168]
[1721881537592,20.0,171.89,171.75,2.46005168]
[1721881537794,29.33,171.85,171.75,2.46005168]
[1721881538014,50.6918,171.85,171.72,6.3398]
[1721881538308,29.33,171.82,171.72,6.3398]
[1721881538606,5.8199,171.83,171.72,6.3398]
[1721881538901,50.6918,171.85,171.72,8.80028146]
[1721881539496,29.33,171.88,171.72,8.80028146]
[1721881539697,29.33,171.88,171.73,2.46033819]
[1721881539698,5.8191,171.85,171.73,2.46033819]
[1721881540102,29.33,171.82,171.73,2.46033819]
[1721881540400,5.8217,171.77,171.73,2.46033819]
[1721881540707,29.33,171.76,171.68,1.0]
[1721881540896,80.1521,171.76,171.68,1.0]
[1721881541804,74.33,171.76,171.68,1.0]
[1721881542795,5.8225,171.75,171.68,1.0]
[1721881543103,45.0,171.74,171.64,21.5934]
[1721881543300,74.33,171.76,171.64,21.5934]
[1721881543301,29.33,171.73,171.64,21.5934]
[1721881543500,45.0,171.72,171.64,21.5934]
[1721881544497,50.8234,171.72,171.64,21.5934]
[1721881544690,50.8234,171.72,171.64,6.5939]
[1721881545706,5.8238,171.71,171.63,0.8118603]
[1721881545902,45.0,171.7,171.63,0.8118603]
[1721881546809,80.1542,171.7,171.63,0.8118603]
[1721881547015,74.33,171.7,171.63,0.8118603]
[1721881548207,389.2,171.76,171.63,0.8118603]
[1721881548208,35.1532,171.73,171.63,0.8118603]
[1721881548910,29.33,171.73,171.63,0.8118603]
[1721881549505,35.1531,171.73,171.63,0.8118603]
[1721881549710,5.8225,171.75,171.63,0.8118603]
[1721881549904,418.53,171.76,171.63,0.8118603]
[1721881550215,45.0,171.75,171.63,3.273632]
[1721881550410,389.2,171.76,171.64,2.46162827]
[1721881552005,5.8218,171.77,171.64,2.46162827]
[1721881552206,45.0,171.76,171.64,2.46162827]
[1721881552409,50.8221,171.76,171.64,2.46162827]
[1721881552821,5.8225,171.75,171.64,2.46162827]
[1721881553203,50.8221,171.76,171.64,2.46162827]
[1721881554425,45.0,171.76,171.64,2.46162827]
[1721881554636,5.8217,171.77,171.64,2.46162827]
[1721881554831,35.6047,171.79,171.64,2.46162827]
[1721881555028,5.8214,171.78,171.64,2.46162827]
[1721881555530,5.8218,171.77,171.64,2.46162827]
[1721881555837,21.98875882,171.83,171.66,44.3295]
[1721881555838,35.15,171.83,171.66,44.3295]
[1721881556033,35.1497,171.83,171.67,3.62577827]
[1721881556200,29.33,171.83,171.68,3.62566166]
[1721881556407,29.33,171.83,171.69,2.46091139]
[1721881556605,29.33,171.83,171.69,22.46091139]
[1721881557019,29.33,171.83,171.7,1.16468603]
[1721881557227,45.0,171.82,171.7,2.46076806]
[1721881557505,29.33,171.83,171.7,2.46076806]
[1721881557724,29.33,171.83,171.71,6.3177]
[1721881557924,254.1,171.85,171.72,17.45998146]
[1721881558151,5.82,171.82,171.72,17.45998146]
[1721881558512,5.8196,171.84,171.72,17.45998146]
[1721881559314,45.0,171.83,171.72,17.45998146]
[1721881559641,50.8197,171.83,171.72,17.45998146]
[1721881560735,5.8207,171.8,171.72,17.45998146]
[1721881560907,45.0,171.79,171.71,6.3177]
[1721881561233,29.33,171.77,171.68,14.9995]
[1721881561442,35.1517,171.77,171.68,14.9995]
[1721881561732,45.0,171.76,171.68,14.9995]
[1721881562115,29.33,171.77,171.68,14.9995]
[1721881562313,45.0,171.76,171.68,14.9995]
[1721881563342,45.0,171.76,171.64,14.9995]
[1721881563632,5.8231,171.73,171.64,14.9995]
[1721881563840,45.0,171.72,171.64,14.9995]
[1721881564714,45.0,171.73,171.64,14.9995]
[1721881565112,5.8244,171.69,171.63,0.8118603]
[1721881565423,50.8248,171.68,171.63,0.8118603]
[1721881565821,45.0,171.68,171.63,0.8118603]
[1721881566142,50.8244,171.69,171.63,0.8118603]
[1721881566322,389.2,171.72,171.63,0.8118603]
[1721881566932,395.0234,171.72,171.63,0.8118603]
[1721881567232,418.53,171.72,171.63,0.8118603]
[1721881567821,5.8241,171.7,171.63,0.8118603]
[1721881568025,45.0,171.69,171.63,0.8118603]
[1721881569430,5.8248,171.68,171.63,0.8118603]
[1721881569619,45.0,171.67,171.63,0.8118603]
[1721881570738,50.8251,171.67,171.63,0.8118603]
[1721881571442,45.0,171.67,171.63,0.8118603]
[1721881571616,45.0,171.68,171.63,0.8118603]
[1721881571820,50.8249,171.68,171.63,0.8118603]
[1721881573322,5.8251,171.67,171.63,0.8118603]
[1721881573528,45.0,171.66,171.63,0.8118603]
[1721881573928,50.8255,171.66,171.63,0.8118603]
[1721881574833,5.8261,171.64,171.63,0.8118603]
[1721881575037,50.8261,171.64,171.63,0.8118603]
[1721881575219,70.8261,171.64,171.63,0.51906615]
[1721881576132,45.0,171.64,171.63,0.51906615]
[1721881584727,50.8261,171.64,171.63,0.51906615]
[1721881586447,70.8261,171.64,171.63,0.51906615]
[1721881587045,65.0,171.64,171.63,0.51906615]
[1721881589845,70.8261,171.64,171.63,0.51906615]
[1721881593633,70.8261,171.64,171.53,14.9995]
[1721881593837,45.0,171.63,171.53,14.9995]
[1721881594651,80.1566,171.63,171.53,14.9995]
[1721881594955,5.8268,171.62,171.53,14.9995]
[1721881595248,45.0,171.61,171.53,14.9995]
[1721881595851,45.0,171.62,171.53,14.9995]
[1721881596756,50.8268,171.62,171.53,14.9995]
[1721881597937,20.0,171.64,171.53,14.9995]
[1721881598344,20.0,171.63,171.53,14.9995]
[1721881598849,25.8263,171.64,171.53,14.9995]
[1721881599053,5.8264,171.63,171.53,14.9995]
[1721881599448,25.8261,171.64,171.53,14.9995]
[1721881599755,20.0,171.64,171.53,14.9995]
[1721881599975,45.0,171.63,171.53,14.9995]
[1721881600453,50.8264,171.63,171.53,14.9995]
[1721881601743,5.8271,171.61,171.53,14.9995]
[1721881601944,45.0,171.6,171.53,14.9995]
[1721881602139,14.71,171.58,171.53,29.7095]
[1721881604655,50.8267,171.63,171.53,29.7095]
[1721881604837,14.71,171.59,171.53,29.7095]
[1721881605041,14.71,171.58,171.53,29.7095]
[1721881608463,103.84,171.63,171.53,29.7095]
[1721881608659,14.71,171.56,171.5,14.71]
[1721881609246,15.9413,171.61,171.5,14.71]
[1721881609449,14.71,171.56,171.5,14.71]
[1721881613750,14.71,171.56,171.51,14.71]
[1721881613961,14.71,171.55,171.5,14.71]
[1721881614751,21.7685,171.61,171.5,14.71]
[1721881614956,14.71,171.56,171.51,14.71]
[1721881616065,21.7685,171.61,171.47,21.3528]
[1721881616066,14.71,171.55,171.47,21.3528]
[1721881616367,14.71,171.55,171.5,14.71]
[1721881620258,14.71,171.55,171.49,14.71]
[1721881620673,5.8279,171.59,171.49,14.71]
[1721881620866,14.71,171.55,171.49,14.71]
[1721881621271,45.0,171.58,171.49,14.71]
[1721881621472,45.0,171.58,171.47,21.3528]
[1721881621473,14.71,171.55,171.5,14.71]
[1721881622876,403.40758997,171.62,171.53,14.71]
[1721881622877,395.356,171.62,171.53,14.71]
[1721881623085,14.71,171.61,171.55,14.71]
[1721881623661,14.71,171.6,171.54,14.71]
[1721881624062,14.71,171.59,171.54,14.71]
[1721881624271,14.71,171.58,171.52,14.71]
[1721881626865,14.71,171.57,171.52,14.71]
[1721881627484,14.71,171.56,171.47,21.3528]
[1721881627684,14.71,171.55,171.5,14.71]
[1721881627868,14.71,171.55,171.47,21.3528]
[1721881628070,14.71,171.55,171.49,14.71]
[1721881628875,14.71,171.55,171.5,14.71]
[1721881630286,14.71,171.55,171.47,21.3528]
[1721881630287,14.71,171.57,171.52,14.71]
[1721881630585,14.71,171.58,171.52,14.71]
[1721881631182,11.6661,171.64,171.53,14.71]
[1721881631365,14.71,171.6,171.48,1.16598909]
[1721881631569,14.71,171.59,171.54,14.71]
[1721881631761,5.8261,171.64,171.54,14.71]
[1721881631762,14.71,171.6,171.54,14.71]
[1721881631987,14.71,171.61,171.55,14.71]
[1721881632496,12.34400625,171.67,171.58,14.71]
[1721881632669,15.8063,171.69,171.61,14.71]
[1721881632863,16.0689,171.73,171.64,14.71]
[1721881633086,16.0689,171.73,171.66,14.71]
[1721881633262,14.71,171.71,171.64,2.46162827]
[1721881633584,10.50703412,171.72,171.67,14.71]
[1721881633585,14.71,171.72,171.67,14.71]
[1721881635793,14.71,171.71,171.66,14.71]
[1721881636302,14.71,171.71,171.64,2.46162827]
[1721881636303,5.8238,171.71,171.64,2.46162827]
[1721881636871,29.37,171.73,171.64,2.46162827]
[1721881637064,389.2,171.75,171.64,2.46162827]
[1721881637278,45.0,171.74,171.64,2.46162827]
[1721881637473,5.8231,171.73,171.64,2.46162827]
[1721881638398,5.8234,171.72,171.64,2.46162827]
[1721881638695,45.0,171.71,171.64,2.46162827]
[1721881638999,20.9562,171.68,171.55,16.98294651]
[1721881639202,20.9562,171.68,171.56,2.46277615]
[1721881639375,45.0,171.67,171.56,2.46277615]
[1721881640471,51.3638,171.67,171.56,2.46277615]
[1721881640668,80.7338,171.67,171.56,2.46277615]
[1721881641383,51.3638,171.67,171.56,2.46277615]
[1721881641591,45.0,171.67,171.57,1.16554425]
[1721881641785,45.0,171.67,171.57,3.62817686]
[1721881642380,45.0,171.67,171.57,2.46263261]
[1721881643493,5.8258,171.65,171.57,2.46263261]
[1721881643871,5.8265,171.63,171.57,2.46263261]
[1721881644076,5.8272,171.61,171.5,21.3253]
[1721881644306,5.8268,171.62,171.51,2.46349412]
[1721881644595,45.0,171.61,171.51,2.46349412]
[1721881644889,35.1974,171.61,171.51,2.46349412]
[1721881645296,45.0,171.6,171.51,2.46349412]
[1721881645472,5.828,171.59,171.51,2.46349412]
[1721881645674,45.0,171.58,171.51,2.46349412]
[1721881649303,29.37,171.61,171.51,2.46349412]
[1721881649304,5.8272,171.61,171.51,2.46349412]
[1721881649887,5.8268,171.62,171.51,2.46349412]
[1721881650598,45.0,171.61,171.51,2.46349412]
[1721881650980,50.8272,171.61,171.51,2.46349412]
[1721881652095,74.37,171.61,171.51,2.46349412]
[1721881652296,5.8281,171.59,171.51,2.46349412]
[1721881652495,50.8283,171.58,171.51,2.46349412]
[1721881652800,50.8283,171.58,171.46,6.8310603]
[1721881652801,45.0,171.57,171.46,6.8310603]
[1721881653010,45.0,171.57,171.47,2.4640688]
[1721881653391,45.0,171.58,171.47,2.4640688]
[1721881653986,15.152,171.59,171.47,2.4640688]
[1721881654187,15.152,171.59,171.47,47.4640688]
[1721881654896,35.1971,171.61,171.47,47.4640688]
[1721881656285,45.0,171.6,171.47,47.4640688]
[1721881657398,45.0,171.6,171.47,2.4640688]
[1721881657797,5.8281,171.59,171.47,2.4640688]
[1721881657995,45.0,171.58,171.47,2.4640688]
[1721881658801,45.0,171.59,171.47,2.4640688]
[1721881659508,50.8279,171.59,171.47,2.4640688]
[1721881660208,50.8279,171.59,171.47,22.4640688]
[1721881660717,45.0,171.59,171.47,22.4640688]
[1721881660930,45.0,171.6,171.47,22.4640688]
[1721881661623,5.8278,171.59,171.47,22.4640688]
[1721881661823,45.0,171.58,171.47,22.4640688]
[1721881662111,50.8283,171.58,171.47,22.4640688]
[1721881663808,45.0,171.58,171.47,22.4640688]
[1721881664318,14.71,171.55,171.49,14.71]
[1721881664705,45.0,171.58,171.49,14.71]
[1721881664905,14.71,171.55,171.49,14.71]
[1721881665500,14.71,171.54,171.49,14.71]
[1721881666937,14.71,171.53,171.47,22.4640688]
[1721881667229,14.71,171.51,171.47,2.4640688]
[1721881669405,14.71,171.5,171.47,2.4640688]
[1721881669923,14.71,171.49,171.47,2.4640688]
[1721881670915,36.9784,171.54,171.47,2.4640688]
[1721881670916,14.71,171.48,171.47,2.4640688]
[1721881672906,5.83,171.53,171.47,2.4640688]
[1721881673102,14.71,171.5,171.47,2.4640688]
[1721881673312,81.1081,171.54,171.47,2.4640688]
[1721881673617,14.71,171.5,171.47,2.4640688]
[1721881674519,14.71,171.5,171.46,0.8118603]
[1721881675409,14.71,171.49,171.46,0.8118603]
[1721881676615,5.8299,171.53,171.46,0.8118603]
[1721881676817,14.71,171.48,171.46,0.8118603]
[1721881678403,5.8299,171.53,171.46,0.8118603]
[1721881678617,14.71,171.48,171.46,0.8118603]
[1721881678807,14.71,171.49,171.46,0.8118603]
[1721881679411,21.87811822,171.58,171.46,15.5218603]
[1721881679619,14.71,171.52,171.47,14.71]
[1721881680228,21.6273,171.58,171.46,0.8118603]
[1721881680229,14.71,171.5,171.46,0.8118603]
[1721881684417,5.8291,171.56,171.46,0.8118603]
[1721881684615,15.7873,171.58,171.5,14.71]
[1721881684813,14.71,171.55,171.5,14.71]
[1721881685430,14.71,171.55,171.49,14.71]
[1721881687030,14.71,171.54,171.49,14.71]
[1721881687735,14.71,171.56,171.51,14.71]
[1721881687913,14.71,171.56,171.5,14.71]
[1721881688634,5.8275,171.6,171.5,14.71]
[1721881688835,14.71,171.56,171.51,14.71]
[1721881689325,23.58243813,171.62,171.51,14.71]
[1721881689532,14.71,171.57,171.51,14.71]
[1721881689915,14.71,171.56,171.51,14.71]
[1721881690923,14.71,171.56,171.5,14.71]
[1721881691122,14.71,171.55,171.5,14.71]
[1721881691334,14.71,171.56,171.5,14.71]
[1721881691527,14.71,171.55,171.5,14.71]
[1721881692519,14.71,171.54,171.49,29.7095]
[1721881693110,14.71,171.54,171.49,14.71]
[1721881693316,14.71,171.5,171.46,0.8118603]
[1721881693816,14.71,171.51,171.46,0.8118603]
[1721881694019,14.71,171.48,171.46,0.8118603]
[1721881694222,14.71,171.47,171.46,0.8118603]
[1721881696219,5.8312,171.49,171.46,0.8118603]
[1721881696431,5.8319,171.47,171.46,0.8118603]
[1721881696930,50.8319,171.47,171.46,0.8118603]
[1721881699327,72.8772,171.47,171.46,0.8118603]
[1721881700743,67.0453,171.47,171.46,0.8118603]
[1721881701944,22.0453,171.47,171.46,0.8118603]
[1721881702146,15.6062,171.47,171.46,0.8118603]
[1721881703038,60.6062,171.47,171.46,0.8118603]
[1721881703247,50.9811,171.51,171.46,0.8118603]
[1721881703424,5.8309,171.5,171.46,0.8118603]
[1721881703847,50.9811,171.51,171.46,0.8118603]
[1721881704049,20.0,171.5,171.46,0.8118603]
[1721881704227,5.8313,171.49,171.46,0.8118603]
[1721881704431,20.0,171.5,171.46,0.8118603]
[1721881705429,25.8309,171.5,171.46,0.8118603]
[1721881706450,5.8312,171.49,171.46,0.8118603]
[1721881706649,50.9811,171.51,171.46,0.8118603]
[1721881706827,56.8116,171.51,171.46,0.8118603]
[1721881707456,50.9811,171.51,171.46,0.8118603]
[1721881707748,56.8117,171.51,171.46,0.8118603]
[1721881710756,5.831,171.5,171.46,0.8118603]
[1721881711064,5.8312,171.49,171.46,0.8118603]
[1721881711435,5.8309,171.5,171.46,0.8118603]
[1721881711741,50.9811,171.51,171.46,0.8118603]
[1721881711927,29.45,171.48,171.46,0.8118603]
[1721881712131,5.8319,171.47,171.46,0.8118603]
[1721881713450,50.8319,171.47,171.46,0.8118603]
[1721881714847,70.8319,171.47,171.46,0.8118603]
[1721881718251,14.73,171.47,171.46,0.8118603]
[1721881720733,5.8309,171.5,171.46,0.8118603]
[1721881721056,14.73,171.47,171.46,0.8118603]
[1721881724550,58.92,171.54,171.46,0.8118603]
[1721881724854,14.73,171.48,171.46,0.8118603]
[1721881725352,5.8306,171.51,171.46,0.8118603]
[1721881725566,14.73,171.47,171.46,0.8118603]
[1721881726955,20.5619,171.47,171.46,0.8118603]
[1721881727162,14.73,171.47,171.46,0.8118603]
[1721881729664,5.8312,171.5,171.46,0.8118603]
[1721881729840,14.73,171.47,171.46,0.8118603]
[1721881732352,20.0,171.53,171.46,0.8118603]
[1721881732353,5.8312,171.49,171.46,0.8118603]
[1721881732661,14.73,171.47,171.46,0.8118603]
[1721881740257,25.25010065,171.47,171.46,0.8118603]
[1721881740447,14.73,171.47,171.46,0.8118603]
[1721881741462,25.25001791,171.47,171.46,0.8118603]
[1721881741764,25.25014346,171.47,171.46,0.8118603]
[1721881744069,25.25006795,171.47,171.46,0.8118603]
[1721881744452,14.73,171.47,171.46,0.8118603]
[1721881745163,25.25008189,171.47,171.46,0.8118603]
[1721881745550,25.24999986,171.47,171.46,0.8118603]
[1721881746261,10.51999986,171.47,171.46,0.8118603]
[1721881746565,14.73,171.47,171.46,0.8118603]
[1721881747859,25.25009893,171.47,171.46,0.8118603]
[1721881748062,14.73,171.47,171.46,0.8118603]
[1721881748370,35.77019786,171.47,171.46,0.8118603]
[1721881748567,25.25009893,171.47,171.46,0.8118603]
[1721881749367,10.52009893,171.47,171.46,0.8118603]
[1721881750468,25.25009893,171.47,171.46,0.8118603]
[1721881751670,35.7700896,171.47,171.46,0.8118603]
[1721881751972,52.12197616,171.47,171.46,0.8118603]
[1721881754166,41.6019896,171.47,171.46,0.8118603]
[1721881754368,52.12221754,171.47,171.46,0.8118603]
[1721881756363,139.72641754,171.47,171.46,0.8118603]
[1721881756568,118.68632794,171.47,171.46,0.8118603]
[1721881756979,112.85442794,171.47,171.46,0.8118603]
[1721881757173,67.85442794,171.47,171.46,0.8118603]
[1721881757374,118.68632794,171.47,171.46,0.8118603]
[1721881757587,108.1661,171.47,171.46,0.8118603]
[1721881757890,129.20655396,171.47,171.46,0.8118603]
[1721881760562,118.68632698,171.47,171.46,0.8118603]
[1721881760764,129.20663919,171.47,171.46,0.8118603]
[1721881760983,143.93663919,171.47,171.46,0.8118603]
[1721881761476,149.77663919,171.47,171.46,0.8118603]
[1721881763582,149.77697594,171.47,171.46,0.8118603]
[1721881764094,160.2976249,171.47,171.46,0.8118603]
[1721881766386,145.5676249,171.47,171.46,0.8118603]
[1721881766788,145.5676249,171.47,171.35,6.6227]
[1721881766789,5.8342,171.41,171.35,6.6227]
[1721881766990,5.8331,171.44,171.35,21.3527]
[1721881767289,14.73,171.41,171.36,14.73]
[1721881768083,14.73,171.4,171.35,21.3527]
[1721881769973,5.8329,171.44,171.35,21.3527]
[1721881770178,14.73,171.41,171.36,15.89700277]
[1721881770480,14.73,171.4,171.35,21.3527]
[1721881772096,14.73,171.41,171.35,21.3527]
[1721881773297,14.73,171.4,171.35,21.3527]
[1721881773588,14.73,171.39,171.35,6.6227]
[1721881773885,14.73,171.4,171.35,6.6227]
[1721881775489,14.73,171.39,171.35,6.6227]
[1721881775998,14.73,171.38,171.35,6.6227]
[1721881776303,5.8343,171.41,171.34,14.9995]
[1721881776304,14.73,171.37,171.34,14.9995]
[1721881777278,14.73,171.36,171.3,21.0452]
[1721881777701,16.8391901,171.43,171.31,14.73]
[1721881777892,14.73,171.37,171.31,14.73]
[1721881778812,14.73,171.36,171.31,14.73]
[1721881780980,5.8339,171.41,171.31,14.73]
[1721881781202,14.73,171.36,171.31,14.73]
[1721881781681,14.73,171.37,171.32,14.73]
[1721881782094,14.73,171.36,171.31,14.73]
[1721881782298,14.73,171.36,171.3,6.3152]
[1721881783801,14.73,171.36,171.31,14.73]
[1721881786005,14.73,171.36,171.29,15.8113603]
[1721881786195,14.73,171.36,171.31,14.73]
[1721881786404,20.9881,171.4,171.29,15.8113603]
[1721881786405,14.73,171.35,171.3,14.73]
[1721881787905,14.73,171.36,171.3,14.73]
[1721881791508,14.73,171.34,171.29,15.8113603]
[1721881791982,14.73,171.34,171.29,30.5413603]
[1721881793203,14.73,171.35,171.29,30.5413603]
[1721881793409,5.8346,171.39,171.29,30.5413603]
[1721881793593,14.73,171.35,171.29,30.5413603]
[1721881796018,14.73,171.35,171.3,14.73]
[1721881796194,14.73,171.35,171.29,15.8113603]
[1721881796393,21.2377,171.4,171.32,14.73]
[1721881796587,14.73,171.38,171.32,14.73]
[1721881798714,15.1538,171.4,171.29,16.97847919]
[1721881798715,15.1538,171.4,171.33,14.73]
[1721881799010,14.73,171.38,171.32,14.73]
[1721881801004,12.4661,171.44,171.34,14.73]
[1721881801005,28.1316,171.44,171.34,14.73]
[1721881801210,14.73,171.4,171.34,14.73]
[1721881801399,14.73,171.39,171.34,14.73]
[1721881801594,14.73,171.38,171.32,14.73]
[1721881802017,14.73,171.38,171.29,15.8113603]
[1721881802314,14.73,171.38,171.32,14.73]
[1721881802509,14.73,171.37,171.32,14.73]
[1721881803301,14.73,171.37,171.31,14.73]
[1721881803501,14.73,171.36,171.31,14.73]
[1721881804804,5.8336,171.43,171.32,14.73]
[1721881805003,14.73,171.38,171.32,14.73]
[1721881805415,5.8336,171.43,171.32,14.73]
[1721881805614,14.73,171.38,171.33,14.73]
[1721881806110,14.73,171.37,171.32,14.73]
[1721881806909,14.73,171.37,171.29,15.8113603]
[1721881806910,5.8336,171.42,171.29,15.8113603]
[1721881807119,5.834,171.41,171.29,15.8113603]
[1721881807419,14.73,171.37,171.31,14.73]
[1721881807620,14.73,171.38,171.32,14.73]
[1721881808008,14.73,171.38,171.3,1.1671854]
[1721881808815,14.73,171.38,171.3,45.0]
[1721881809213,22.2984,171.44,171.34,14.73]
[1721881809410,15.1538,171.49,171.4,14.73]
[1721881809411,16.6375,171.48,171.4,14.73]
[1721881809610,14.73,171.46,171.4,14.73]
[1721881809813,14.73,171.46,171.41,14.73]
[1721881810016,14.73,171.46,171.36,30.89615218]
[1721881810017,6.4417,171.49,171.43,14.73]
[1721881810206,14.73,171.47,171.42,14.73]
[1721881810508,14.73,171.46,171.4,14.73]
[1721881810821,14.73,171.46,171.36,75.0860029]
[1721881810822,14.73,171.45,171.36,14.9995]
[1721881811113,14.73,171.45,171.29,8.15418387]
[1721881811114,14.73,171.4,171.32,14.9995]
[1721881811315,14.73,171.37,171.32,14.73]
[1721881811919,14.73,171.37,171.31,14.73]
[1721881812516,14.73,171.36,171.31,14.73]
[1721881812925,14.73,171.4,171.35,14.73]
[1721881813311,14.73,171.37,171.32,14.73]
[1721881813523,6.1308,171.41,171.29,0.8118603]
[1721881813524,14.73,171.36,171.29,0.8118603]
[1721881813829,14.73,171.36,171.3,14.73]
[1721881814529,14.73,171.37,171.32,14.73]
[1721881815713,11.9648,171.41,171.32,14.73]
[1721881815917,14.73,171.36,171.31,14.73]
[1721881816325,14.73,171.38,171.33,14.73]
[1721881816629,14.73,171.37,171.32,14.73]
[1721881817113,14.73,171.38,171.33,14.73]
[1721881818124,14.73,171.39,171.34,14.73]
[1721881819002,6.1308,171.41,171.37,14.73]
[1721881819343,16.3713,171.45,171.29,1.97910069]
[1721881819344,14.73,171.43,171.38,14.73]
[1721881819519,22.5738,171.45,171.3,6.6061]
[1721881819849,14.73,171.38,171.33,14.73]
[1721881820333,14.73,171.36,171.31,14.73]
[1721881821017,15.1436,171.38,171.31,14.73]
[1721881821018,14.73,171.37,171.31,14.73]
[1721881821415,14.73,171.37,171.32,14.73]
[1721881823714,15.1436,171.38,171.32,14.73]
[1721881824034,14.73,171.37,171.32,14.73]
[1721881824733,14.73,171.37,171.29,0.8118603]
[1721881824933,14.73,171.37,171.32,14.73]
[1721881825628,29.8736,171.38,171.32,14.73]
[1721881826836,29.8736,171.38,171.33,14.73]
[1721881827032,29.8736,171.38,171.29,0.8118603]
[1721881827033,15.2127,171.42,171.35,14.73]
[1721881827332,15.2127,171.42,171.37,14.73]
[1721881827526,15.2127,171.42,171.38,14.73]
[1721881828038,15.2127,171.42,171.37,14.73]
[1721881828225,14.73,171.44,171.39,14.73]
[1721881828631,14.73,171.47,171.42,14.73]
[1721881828837,14.73,171.49,171.44,14.73]
[1721881829532,14.73,171.52,171.47,14.73]
[1721881829922,14.73,171.51,171.46,14.73]
[1721881830529,14.73,171.5,171.45,14.73]
[1721881830735,14.73,171.5,171.42,14.9995]
[1721881830736,22.5595,171.55,171.46,14.73]
[1721881831042,22.5595,171.55,171.43,1.16628119]
[1721881831043,14.73,171.53,171.48,14.73]
[1721881831340,14.73,171.52,171.47,14.73]
[1721881831542,14.73,171.52,171.46,14.73]
[1721881832823,14.73,171.51,171.45,14.73]
[1721881833539,14.73,171.5,171.45,14.73]
[1721881834736,14.73,171.5,171.42,14.9995]
[1721881835037,14.73,171.5,171.45,14.73]
[1721881835441,14.73,171.5,171.42,14.9995]
[1721881835621,20.5595,171.54,171.44,14.73]
[1721881835622,14.73,171.49,171.44,14.73]
[1721881835822,14.73,171.47,171.41,14.73]
[1721881836032,14.73,171.46,171.41,14.73]
[1721881836235,14.73,171.47,171.41,14.73]
[1721881836614,14.73,171.48,171.42,14.73]
[1721881836832,14.73,171.47,171.42,14.73]
[1721881837737,14.73,171.47,171.41,14.73]
[1721881838235,14.73,171.51,171.46,14.73]
[1721881838437,14.73,171.5,171.45,14.73]
[1721881839642,14.73,171.5,171.42,45.0]
[1721881839822,14.73,171.5,171.45,14.73]
[1721881842135,14.73,171.53,171.48,14.73]
[1721881842340,14.73,171.53,171.38,16.16581804]
[1721881842341,16.5513,171.55,171.52,14.73]
[1721881842639,403.93,171.58,171.52,14.73]
[1721881842831,403.93,171.58,171.51,14.73]
[1721881842832,14.73,171.56,171.51,14.73]
[1721881843031,14.73,171.55,171.46,14.9995]
[1721881843245,14.73,171.55,171.49,14.73]
[1721881843737,14.73,171.52,171.47,14.73]
[1721881843927,14.73,171.53,171.47,14.73]
[1721881844328,5.8285,171.57,171.42,44.4295]
[1721881844527,45.0,171.56,171.42,44.4295]
[1721881844748,45.0,171.56,171.42,46.51123313]
[1721881845330,45.0,171.56,171.43,45.0]
[1721881845534,45.0,171.57,171.43,45.0]